bitfinex/quotes_ETHUSD_20250131
["timestamp","ask_amount","ask_price","bid_price","bid_amount"]
[1738354155011,0.219,3326.8,3326.7,0.04684792]
[1738354155213,0.219,3326.8,3326.3,3.988825]
[1738354155436,0.2265,3326.8,3326.7,0.04684792]
[1738354155732,0.219,3327.0,3326.8,3.00587]
[1738354156124,0.219,3327.0,3326.9,0.04696167]
[1738354156435,0.219,3327.1,3326.9,3.05272167]
[1738354156643,3.53908394,3327.8,3327.3,3.00535]
[1738354156796,0.219,3328.0,3327.6,3.00515]
[1738354156999,0.219,3328.0,3327.9,3.00489]
[1738354157194,0.219,3328.3,3327.9,3.00489]
[1738354157395,0.219,3328.3,3327.9,0.04626622]
[1738354157609,3.22353,3328.3,3327.9,0.04626622]
[1738354158307,2.76618394,3328.1,3327.9,0.04626622]
[1738354158546,3.0198,3328.0,3327.3,3.00542]
[1738354158743,3.00499,3327.8,3327.3,3.00542]
[1738354158944,3.01258,3327.7,3327.1,3.83868]
[1738354159105,3.01275,3327.5,3327.4,0.04659158]
[1738354159307,0.015,3327.6,3326.8,0.8331]
[1738354159543,0.015,3327.6,3326.9,3.00573]
[1738354159857,3.2236,3328.3,3326.9,3.00573]
[1738354159858,0.28441971,3328.2,3327.9,0.8043]
[1738354160006,0.28441971,3328.2,3327.9,3.80918]
[1738354160207,0.28441971,3328.2,3328.0,0.04606133]
[1738354161849,0.28441971,3328.2,3328.1,3.00471]
[1738354162011,0.28441971,3328.2,3328.1,0.04599628]
[1738354162211,0.28441971,3328.2,3327.9,3.80914]
[1738354162412,0.28441971,3328.2,3328.0,0.04606133]
[1738354163259,3.01221,3328.1,3328.0,0.04606133]
[1738354163617,3.01221,3328.1,3327.6,0.7726]
[1738354163817,0.28441971,3328.2,3327.9,3.00482]
[1738354164030,0.28441971,3328.2,3328.0,0.04588883]
[1738354165250,0.28441971,3328.2,3327.7,3.00506]
[1738354165251,0.28441971,3328.2,3327.9,3.00487]
[1738354165412,0.28441971,3328.2,3328.1,0.04539242]
[1738354165808,0.28441971,3328.2,3328.1,3.05010242]
[1738354166015,0.28441971,3328.2,3328.1,4.40939066]
[1738354166215,0.28441971,3328.2,3328.1,7.40939066]
[1738354167414,0.28441971,3328.2,3328.1,4.08197916]
[1738354168056,0.28441971,3328.2,3328.1,0.32346916]
[1738354168211,0.29191971,3328.2,3328.1,0.32346916]
[1738354168756,0.28441971,3328.2,3328.1,0.27807674]
[1738354169112,0.28441971,3328.2,3328.1,0.04518728]
[1738354169513,0.28441971,3328.2,3327.8,3.0049]
[1738354169717,0.28441971,3328.2,3328.1,0.04518728]
[1738354169954,0.28441971,3328.2,3327.8,3.0049]
[1738354170157,0.28441971,3328.2,3328.1,0.04526457]
[1738354170361,0.28441971,3328.2,3327.8,3.0049]
[1738354170517,0.28441971,3328.2,3328.1,0.04526457]
[1738354170719,0.28441971,3328.2,3328.0,3.00474]
[1738354170961,0.28441971,3328.2,3328.1,0.04526457]
[1738354171136,0.28441971,3328.2,3328.1,3.04997457]
[1738354172218,0.28441971,3328.2,3328.1,0.04526457]
[1738354172420,0.28441971,3328.2,3328.1,3.00471]
[1738354172623,0.28441971,3328.2,3328.1,3.04995376]
[1738354172855,0.28441971,3328.2,3328.1,0.04524376]
[1738354173055,0.28441971,3328.2,3328.0,3.00476]
[1738354173352,0.28441971,3328.2,3328.1,0.04525565]
[1738354173722,0.28441971,3328.2,3328.1,3.82231]
[1738354173916,0.28441971,3328.2,3328.1,4.85077154]
[1738354174122,0.28441971,3328.2,3328.1,11.4220175]
[1738354174319,9.71e-06,3328.2,3328.1,11.39197459]
[1738354174934,9.71e-06,3328.2,3328.1,11.66972854]
[1738354175555,9.71e-06,3328.2,3328.1,12.31972854]
[1738354175743,9.71e-06,3328.2,3328.1,11.66972854]
[1738354177071,9.71e-06,3328.2,3328.1,12.21972854]
[1738354177740,9.71e-06,3328.2,3328.1,12.31972854]
[1738354178453,9.71e-06,3328.2,3328.1,12.21972854]
[1738354178647,9.71e-06,3328.2,3328.1,12.31972854]
[1738354179650,9.71e-06,3328.2,3328.1,12.21972854]
[1738354179960,9.71e-06,3328.2,3328.1,11.66972854]
[1738354180469,9.71e-06,3328.2,3328.1,12.21972854]
[1738354180629,9.71e-06,3328.2,3328.1,12.31972854]
[1738354181236,9.71e-06,3328.2,3328.1,12.33472854]
[1738354181574,0.219,3330.0,3329.9,3.00307]
[1738354181987,0.219,3330.0,3329.9,3.04640337]
[1738354183206,0.219,3330.3,3330.1,3.00285]
[1738354183489,0.219,3330.3,3330.2,0.0430434]
[1738354183872,3.22173,3330.3,3330.2,0.0430434]
[1738354184071,3.22173,3330.3,3329.3,3.54120305]
[1738354184072,3.003,3330.1,3329.3,3.0036]
[1738354184245,3.77039,3329.9,3329.3,3.0036]
[1738354184446,3.00318,3329.8,3329.4,0.04343858]
[1738354184677,3.00318,3329.8,3329.2,3.00365]
[1738354184877,3.00318,3329.8,3329.3,0.04350358]
[1738354185082,0.7996,3330.2,3329.7,3.00324]
[1738354185345,0.219,3330.0,3329.5,3.00337]
[1738354185585,0.219,3330.0,3329.8,0.0431786]
[1738354185586,3.00309,3329.9,3329.8,0.0431786]
[1738354185786,3.01059,3329.9,3329.8,0.0431786]
[1738354185946,3.00328,3329.7,3329.1,3.00374]
[1738354186148,3.00328,3329.7,3328.7,3.00415]
[1738354186149,0.0075,3329.4,3328.7,3.00415]
[1738354186448,0.0075,3329.4,3328.5,3.54120305]
[1738354186449,0.0075,3329.2,3328.5,6.54551305]
[1738354186645,3.76848,3329.6,3328.8,3.00406]
[1738354186899,0.219,3329.5,3329.0,3.00383]
[1738354187099,0.7651,3329.6,3329.3,3.00361]
[1738354187306,0.7966,3330.1,3329.8,3.00318]
[1738354187506,0.7966,3330.5,3330.0,3.003]
[1738354187799,0.219,3330.4,3330.1,3.00289]
[1738354187984,0.219,3330.4,3330.1,0.04268958]
[1738354189588,0.219,3330.4,3330.1,3.04556958]
[1738354190560,0.219,3330.4,3330.3,3.00273]
[1738354190765,0.219,3330.5,3330.3,3.00273]
[1738354191092,0.219,3330.6,3330.5,3.00246]
[1738354191405,3.00193,3331.2,3330.5,3.00246]
[1738354191406,0.0075,3331.2,3330.7,3.00237]
[1738354191551,0.219,3331.1,3330.5,3.04488972]
[1738354191755,3.00213,3331.0,3330.8,0.04223485]
[1738354191950,6.00432,3331.0,3330.3,6.54389305]
[1738354192209,6.00432,3331.0,3330.9,0.04216991]
[1738354192406,3.00213,3331.0,3330.4,3.00263]
[1738354192552,3.00213,3331.0,3330.9,0.04216991]
[1738354192752,3.00213,3331.0,3330.4,3.00263]
[1738354192952,3.00213,3331.0,3330.9,0.04207491]
[1738354193188,3.00213,3331.0,3330.4,3.00263]
[1738354193500,3.00213,3331.0,3330.3,6.54389305]
[1738354193704,3.00213,3331.0,3330.5,0.04233472]
[1738354194002,3.00213,3331.0,3330.4,3.04502968]
[1738354194198,3.00213,3331.0,3330.6,0.04226976]
[1738354194484,3.00213,3331.0,3330.7,0.0422048]
[1738354194688,3.00228,3330.8,3330.3,3.54120305]
[1738354195388,3.324993,3331.0,3330.0,3.76816]
[1738354195389,3.00245,3330.7,3330.0,3.00296]
[1738354195573,3.00255,3330.5,3329.8,6.00622]
[1738354195884,3.00255,3330.5,3329.8,3.00311]
[1738354196084,3.00255,3330.5,3329.6,0.8194]
[1738354196316,3.00283,3330.2,3329.6,3.00335]
[1738354196521,3.00274,3330.3,3329.6,3.00335]
[1738354196819,3.384655,3330.5,3329.7,3.00327]
[1738354197001,3.384655,3330.5,3329.7,0.27826847]
[1738354197207,3.00271,3330.4,3329.8,3.00313]
[1738354197401,3.00271,3330.4,3329.7,0.27826847]
[1738354197402,0.382105,3330.5,3329.7,0.27826847]
[1738354197579,3.00301,3330.0,3329.7,0.27826847]
[1738354197915,3.0031,3329.9,3329.7,0.27826847]
[1738354198089,0.5575,3330.4,3329.7,0.27826847]
[1738354198413,0.5575,3330.4,3329.5,3.54120305]
[1738354198414,0.8185,3330.6,3329.6,0.27826847]
[1738354198617,3.00275,3330.3,3329.7,3.00321]
[1738354199520,3.00282,3330.2,3329.7,3.00321]
[1738354199721,3.00282,3330.2,3329.6,0.27826847]
[1738354199893,3.00283,3330.2,3329.6,3.28160847]
[1738354200222,3.00283,3330.2,3329.7,3.00326]
[1738354200524,0.218,3330.7,3330.4,3.00259]
[1738354200705,0.218,3330.7,3330.2,3.00275]
[1738354201026,0.218,3330.7,3330.3,3.00271]
[1738354201177,0.218,3330.7,3330.0,3.00299]
[1738354201384,0.218,3330.7,3328.6,6.54538305]
[1738354201385,3.00286,3330.2,3329.6,3.00333]
[1738354201608,3.78096,3330.2,3329.5,3.54120305]
[1738354201923,3.003,3330.0,3329.4,3.00349]
[1738354202139,3.00321,3329.8,3329.2,3.76058]
[1738354202291,3.00321,3329.8,3329.2,3.00368]
[1738354202633,0.7989,3329.5,3329.1,3.0038]
[1738354202783,0.7989,3329.5,3329.0,3.0039]
[1738354202987,0.0075,3329.4,3328.7,3.00408]
[1738354203290,3.00396,3329.0,3328.4,3.0044]
[1738354203493,0.0075,3328.9,3328.4,1.0358693]
[1738354203693,0.0075,3328.9,3328.4,4.0402393]
[1738354204119,0.015,3329.1,3328.5,3.00429]
[1738354204325,3.0189,3329.1,3328.5,0.27961595]
[1738354204535,3.01882,3329.1,3328.5,0.27961595]
[1738354204684,0.015,3329.1,3328.6,3.00426]
[1738354204884,3.01887,3329.1,3328.5,0.27961595]
[1738354205124,3.01887,3329.1,3328.5,3.28394595]
[1738354205390,3.01168,3328.7,3328.5,0.27961595]
[1738354205585,0.0075,3328.7,3328.6,0.27961595]
[1738354206014,3.01167,3328.7,3328.6,0.27961595]
[1738354206287,0.0075,3328.7,3328.6,0.27961595]
[1738354206487,3.396759,3328.7,3328.6,0.31895394]
[1738354206801,3.396759,3328.7,3328.6,0.27961595]
[1738354207189,3.396759,3328.7,3328.6,0.31895394]
[1738354207392,0.0075,3328.7,3328.6,0.03933799]
[1738354207929,0.218,3328.7,3328.6,0.03933799]
[1738354208224,0.218,3328.7,3328.4,3.00437]
[1738354208425,0.218,3328.7,3328.5,0.03987827]
[1738354208628,0.218,3328.7,3328.5,3.04421827]
[1738354208786,0.218,3328.7,3328.6,3.00426]
[1738354208989,3.00341,3329.6,3329.3,3.00362]
[1738354208990,0.218,3329.4,3329.3,3.00362]
[1738354209531,0.218,3329.4,3329.3,0.0393581]
[1738354210025,0.218,3329.4,3329.0,3.0039]
[1738354210228,0.218,3329.4,3329.3,0.0393581]
[1738354210393,0.218,3329.4,3329.2,3.0037]
[1738354210589,0.218,3329.4,3328.9,0.7674]
[1738354210590,0.218,3329.4,3329.3,0.0393581]
[1738354211005,0.218,3329.4,3329.2,3.0037]
[1738354211303,0.218,3329.4,3329.3,0.0393581]
[1738354211503,0.218,3329.4,3329.0,3.00383]
[1738354211716,0.218,3329.4,3329.3,0.03954224]
[1738354211889,0.218,3329.4,3329.1,3.00374]
[1738354212091,0.218,3329.4,3329.3,0.03954224]
[1738354212284,0.218,3329.4,3329.2,3.00369]
[1738354212528,0.218,3329.4,3329.3,3.04316927]
[1738354212735,0.7729,3329.9,3329.3,3.04316927]
[1738354212885,0.218,3329.8,3329.3,0.03953927]
[1738354213088,3.22126,3329.8,3329.2,3.0037]
[1738354213328,3.22126,3329.8,3329.4,0.03947427]
[1738354213523,3.22126,3329.8,3329.3,0.31873294]
[1738354213727,3.22126,3329.8,3329.5,0.03940927]
[1738354213926,3.22126,3329.8,3329.3,0.27919367]
[1738354214229,0.0075,3329.5,3329.3,0.27919367]
[1738354214736,3.01096,3329.5,3329.3,0.27919367]
[1738354215028,0.0075,3329.6,3329.1,3.00379]
[1738354215241,3.00279,3330.3,3328.6,4.33720305]
[1738354215242,0.7665,3330.2,3329.5,3.00339]
[1738354215393,0.218,3330.2,3330.1,3.00291]
[1738354215593,0.8083,3330.6,3329.8,3.54120305]
[1738354215787,0.218,3330.7,3330.3,3.00273]
[1738354216191,0.218,3330.7,3330.4,3.00264]
[1738354216929,0.218,3330.7,3330.3,3.00273]
[1738354217300,0.218,3330.7,3330.4,3.00264]
[1738354217629,0.218,3330.7,3330.3,3.00273]
[1738354218013,0.218,3330.7,3330.4,3.00262]
[1738354218722,6.00345,3331.5,3330.8,3.00226]
[1738354218928,2.38,3331.8,3330.9,3.00217]
[1738354218929,4.03775,3331.4,3330.9,3.00217]
[1738354219163,3.00185,3331.3,3330.7,3.00237]
[1738354219361,0.403785,3331.2,3330.5,3.00251]
[1738354219507,0.218,3331.1,3330.7,3.78654]
[1738354219858,0.218,3331.1,3330.9,3.00211]
[1738354220360,0.218,3331.4,3331.2,3.00191]
[1738354220709,0.7731,3332.2,3331.6,3.00149]
[1738354220910,0.218,3332.0,3331.8,3.00134]
[1738354221227,0.218,3332.0,3331.5,3.00156]
[1738354221544,0.218,3332.0,3331.6,0.03693753]
[1738354221706,3.00897,3331.7,3331.6,0.03693753]
[1738354221905,3.00183,3331.3,3330.7,3.0023]
[1738354222155,3.00183,3331.3,3330.5,3.82999]
[1738354222320,0.015,3331.3,3330.3,3.00272]
[1738354222521,0.015,3331.3,3330.2,4.36870305]
[1738354222522,3.00225,3330.9,3330.2,0.8275]
[1738354222713,3.00225,3330.9,3330.3,3.00272]
[1738354223348,3.00225,3330.9,3330.3,3.686031]
[1738354223576,3.00229,3330.8,3330.3,0.683311]
[1738354223910,3.00229,3330.8,3330.0,3.0]
[1738354224104,3.00229,3330.8,3330.1,3.00285]
[1738354224354,0.0075,3330.9,3330.3,3.00266]
[1738354224511,3.00212,3331.0,3330.4,3.00263]
[1738354225024,3.00212,3331.0,3330.5,3.00254]
[1738354225350,3.82237,3331.4,3330.6,3.00239]
[1738354225667,3.21986,3331.3,3330.7,3.00228]
[1738354226150,3.00201,3331.1,3330.6,0.8232]
[1738354226350,3.00201,3331.1,3330.5,3.00251]
[1738354226351,3.00218,3331.0,3330.3,3.00271]
[1738354226525,3.00218,3331.0,3330.4,3.00263]
[1738354227261,3.00218,3331.0,3330.3,3.00271]
[1738354228027,3.00218,3331.0,3330.4,3.00258]
[1738354228408,3.0023,3330.8,3330.0,6.00295]
[1738354228663,3.0023,3330.8,3330.0,3.00295]
[1738354228664,3.00248,3330.6,3330.0,3.00295]
[1738354229362,3.00258,3330.5,3329.9,0.7692]
[1738354229655,3.00258,3330.5,3329.9,3.77222]
[1738354229816,3.00258,3330.5,3329.9,6.77523]
[1738354230015,3.00258,3330.5,3329.9,3.77221]
[1738354230222,3.00258,3330.5,3329.9,0.7692]
[1738354230454,3.00258,3330.5,3329.8,6.54438305]
[1738354230633,3.00258,3330.5,3329.9,3.00308]
[1738354230861,3.00267,3330.4,3329.9,3.00308]
[1738354231035,3.00258,3330.5,3329.8,0.95476331]
[1738354231236,3.00273,3330.3,3329.8,3.00314]
[1738354231719,0.8085,3330.7,3329.8,3.54120305]
[1738354231914,3.00972,3330.9,3330.3,3.00267]
[1738354232166,0.0075,3330.8,3330.3,3.00267]
[1738354232774,0.218,3330.9,3330.5,3.00254]
[1738354232940,0.218,3330.9,3330.3,3.00267]
[1738354233140,0.218,3330.9,3330.4,3.00262]
[1738354233787,3.2202,3330.9,3330.3,3.302937]
[1738354233986,3.2202,3330.9,3330.3,6.305607]
[1738354234563,3.2202,3330.9,3330.3,6.305587]
[1738354235101,0.7869,3331.1,3330.4,0.7508]
[1738354235320,0.8224,3331.4,3330.6,6.54366305]
[1738354235459,3.00093,3332.3,3331.1,3.00196]
[1738354235460,0.7594,3331.8,3331.1,3.00196]
[1738354235655,0.218,3331.7,3331.1,3.00196]
[1738354235901,3.21947,3331.7,3331.1,3.00196]
[1738354236260,3.00161,3331.6,3330.9,3.00211]
[1738354236491,3.00161,3331.6,3331.2,0.07048821]
[1738354236701,3.00161,3331.6,3331.0,3.00202]
[1738354236907,3.00161,3331.6,3331.3,0.07042228]
[1738354237077,3.00161,3331.6,3331.0,3.00202]
[1738354237412,3.00165,3331.5,3331.4,0.07035636]
[1738354237566,3.00165,3331.5,3331.0,3.00202]
[1738354237766,3.00165,3331.5,3331.4,0.07035636]
[1738354237965,3.00165,3331.5,3331.0,3.00202]
[1738354238503,3.21953,3331.7,3331.1,3.07247414]
[1738354238677,0.218,3331.7,3331.1,0.07055414]
[1738354238856,3.00156,3331.6,3331.1,0.07055414]
[1738354239065,0.218,3331.7,3331.2,3.00191]
[1738354239380,3.00157,3331.6,3331.2,0.07048821]
[1738354239805,0.0075,3332.0,3331.2,1.07495082]
[1738354239992,0.218,3331.9,3331.7,3.00138]
[1738354240160,0.218,3331.9,3331.6,3.00154]
[1738354240465,0.218,3331.9,3331.7,0.06985892]
[1738354240689,0.8271,3332.1,3331.7,3.00145]
[1738354240889,0.218,3332.2,3331.8,0.06979302]
[1738354241104,0.218,3332.2,3331.8,3.00137]
[1738354241267,0.218,3332.2,3331.9,3.07095711]
[1738354241659,0.218,3332.2,3332.1,3.00111]
[1738354241969,3.00827,3332.5,3332.1,0.06959532]
[1738354242368,3.00086,3332.4,3331.9,3.00125]
[1738354242564,3.00086,3332.4,3332.2,0.06906361]
[1738354242770,3.00086,3332.4,3331.9,3.00125]
[1738354243013,0.0075,3332.5,3332.3,0.06899773]
[1738354243014,3.00825,3332.5,3332.3,0.06899773]
[1738354243309,0.0075,3332.5,3332.0,3.00118]
[1738354243504,0.0075,3332.5,3332.4,0.06893185]
[1738354243668,0.0075,3332.5,3332.1,3.0011]
[1738354243865,0.0075,3332.5,3331.9,3.00126]
[1738354243866,0.218,3333.0,3332.5,3.00066]
[1738354244193,3.21831,3333.0,3332.5,3.00066]
[1738354244358,0.8048,3333.2,3332.6,0.06861324]
[1738354244561,3.22299,3333.4,3332.8,3.00046]
[1738354244759,0.0075,3333.3,3332.8,3.00046]
[1738354244963,0.0075,3333.3,3332.9,0.06837117]
[1738354245414,3.00012,3333.2,3332.9,0.06837117]
[1738354245717,0.0075,3333.3,3333.0,0.06830531]
[1738354246017,0.0075,3333.1,3332.3,3.00091]
[1738354246317,0.0075,3333.1,3332.2,3.001]
[1738354246478,3.00038,3333.0,3332.4,0.06870052]
[1738354246681,3.00063,3332.7,3332.0,3.00117]
[1738354246896,3.00063,3332.7,3332.5,0.06863464]
[1738354247222,3.600745,3332.7,3332.1,3.00109]
[1738354247376,3.00052,3332.8,3332.1,3.00109]
[1738354247377,3.00052,3332.8,3332.6,0.06845611]
[1738354247577,3.00029,3333.1,3331.9,0.7539]
[1738354247787,0.015,3333.0,3332.7,0.06343427]
[1738354248033,3.0005,3332.8,3332.2,3.001]
[1738354248724,3.00058,3332.7,3332.1,3.0011]
[1738354248889,3.600818,3332.6,3332.1,3.0011]
[1738354249080,0.0075,3332.7,3332.2,3.001]
[1738354249278,3.00809,3332.7,3332.0,3.00114]
[1738354249477,3.00039,3332.9,3332.3,3.00087]
[1738354250727,3.00048,3332.8,3332.3,3.00092]
[1738354251019,3.00048,3332.8,3332.1,3.00104]
[1738354251020,3.00067,3332.6,3332.1,3.00104]
[1738354251230,3.75702,3332.4,3331.7,3.00139]
[1738354251527,3.00096,3332.3,3331.8,0.0617807]
[1738354251732,6.00212,3332.2,3331.5,3.75262]
[1738354252030,3.00102,3332.2,3331.9,0.0617148]
[1738354252209,3.00102,3332.2,3331.6,3.00154]
[1738354252393,3.00102,3332.2,3332.0,0.0616489]
[1738354252611,0.7561,3332.4,3331.5,0.751]
[1738354252937,3.75694,3332.4,3331.8,3.00132]
[1738354253090,0.7561,3332.4,3331.8,3.00132]
[1738354253293,0.7561,3332.4,3332.1,3.00103]
[1738354253487,3.81257,3332.7,3332.1,3.00103]
[1738354253687,0.812,3332.7,3332.2,0.06159715]
[1738354253935,3.00032,3333.0,3332.3,3.00085]
[1738354254089,3.00032,3333.0,3332.3,3.06238127]
[1738354254090,0.0075,3332.9,3332.3,3.06238127]
[1738354254641,0.0075,3332.7,3332.3,0.06153127]
[1738354254793,3.00813,3332.7,3332.3,0.06153127]
[1738354254994,3.00813,3332.7,3332.1,3.00107]
[1738354255218,3.00813,3332.7,3332.4,0.06142387]
[1738354255393,3.00813,3332.7,3331.9,3.00124]
[1738354255394,3.00066,3332.6,3331.9,3.00124]
[1738354255612,0.0075,3332.7,3332.5,0.06135799]
[1738354255813,0.0075,3332.7,3332.1,3.00102]
[1738354256144,0.0075,3332.9,3332.2,0.05934074]
[1738354256350,3.00081,3332.5,3332.0,3.00119]
[1738354256555,3.00081,3332.5,3332.3,0.05927485]
[1738354256733,3.00084,3332.4,3331.8,3.00132]
[1738354256939,0.7617,3332.3,3331.7,3.00138]
[1738354257118,3.00102,3332.2,3331.5,3.75263]
[1738354257325,3.0013,3331.9,3331.3,3.00178]
[1738354257636,3.00888,3331.8,3331.2,3.00189]
[1738354258155,3.00879,3331.9,3331.4,3.00173]
[1738354258326,0.218,3332.1,3331.5,0.03001665]
[1738354258506,0.218,3332.1,3331.5,3.00157]
[1738354258706,3.21913,3332.1,3331.3,3.00178]
[1738354259009,3.00143,3331.8,3331.2,3.28074827]
[1738354259445,3.00149,3331.7,3331.2,0.27885827]
[1738354260262,3.00137,3331.9,3331.2,3.0019]
[1738354260458,0.0075,3332.0,3331.2,3.0019]
[1738354260459,0.218,3332.1,3331.4,4.29800305]
[1738354260608,0.7816,3332.7,3332.4,3.00077]
[1738354260819,3.00043,3332.9,3332.3,3.00086]
[1738354261121,3.001,3332.3,3331.7,3.7582]
[1738354261308,6.7836,3332.3,3331.7,3.0014]
[1738354261514,3.7826,3332.3,3331.8,3.00136]
[1738354261950,0.7816,3332.3,3331.8,3.00136]
[1738354262151,3.00104,3332.2,3331.6,3.0015]
[1738354262861,3.00861,3332.1,3331.6,3.0015]
[1738354263154,0.0075,3332.1,3331.6,3.0015]
[1738354263363,0.0075,3332.1,3331.6,3.901819]
[1738354263572,0.7816,3332.3,3331.6,0.900319]
[1738354263853,0.7816,3332.3,3331.9,3.00124]
[1738354264519,3.78253,3332.3,3331.8,3.00135]
[1738354264715,0.0075,3332.2,3331.5,3.0016]
[1738354264962,3.00111,3332.1,3331.6,3.00155]
[1738354265112,0.218,3332.4,3331.7,3.00147]
[1738354265461,0.8096,3333.0,3332.7,3.00051]
[1738354265850,1.0374,3333.4,3332.4,0.7709]
[1738354266050,3.00005,3333.3,3332.7,3.00049]
[1738354266557,3.00005,3333.3,3332.8,0.05907599]
[1738354266763,3.00005,3333.3,3332.7,3.00049]
[1738354266933,3.00013,3333.2,3332.9,0.05901013]
[1738354267268,0.0075,3332.9,3332.1,3.75224]
[1738354267594,3.80433,3333.1,3332.5,3.00068]
[1738354267871,3.00036,3333.0,3332.3,6.00175]
[1738354268046,0.387946,3332.9,3332.1,3.00108]
[1738354268231,3.00054,3332.8,3332.3,3.00092]
[1738354268432,0.8041,3333.1,3332.6,3.00065]
[1738354269256,3.22553,3333.3,3332.8,3.00042]
[1738354269460,3.22558,3333.3,3332.8,3.00042]
[1738354269761,3.00012,3333.2,3332.7,3.00055]
[1738354269966,3.00012,3333.2,3332.5,0.7879]
[1738354270166,0.2255,3333.3,3332.1,0.8267]
[1738354270330,3.00014,3333.2,3332.7,3.00051]
[1738354270529,3.00014,3333.2,3332.5,3.00072]
[1738354270873,3.22553,3333.3,3332.7,3.00049]
[1738354271162,0.005,3333.4,3333.1,3.00019]
[1738354271397,0.005,3333.4,3333.3,3.00003]
[1738354272131,0.005,3333.4,3333.3,6.00003]
[1738354272458,0.005,3333.4,3333.3,6.81402509]
[1738354272618,0.005,3333.4,3333.3,8.60045651]
[1738354273634,0.7574,3335.0,3333.3,8.60045651]
[1738354273635,0.7574,3335.0,3333.5,0.7501]
[1738354273832,0.14819604,3335.7,3334.3,0.7501]
[1738354273833,0.7818,3335.4,3334.3,0.7501]
[1738354274063,0.7818,3335.4,3335.0,2.99846]
[1738354274223,0.7762,3336.0,3335.1,0.7547]
[1738354274422,0.7762,3336.0,3334.4,2.99904]
[1738354274423,3.21572,3335.9,3334.7,0.7547]
[1738354274654,0.7912,3335.0,3334.3,2.99905]
[1738354274970,2.9986,3334.9,3334.2,0.7547]
[1738354275243,2.99842,3335.1,3334.2,0.7547]
[1738354275521,2.99842,3335.1,3334.2,3.75389]
[1738354275717,0.8226,3335.4,3334.2,3.75389]
[1738354275868,2.99882,3334.7,3334.0,2.99931]
[1738354276213,2.99911,3334.4,3333.8,0.7604]
[1738354276422,2.99949,3333.9,3333.4,0.7604]
[1738354276599,0.565,3334.5,3333.4,0.7604]
[1738354276927,2.99959,3333.8,3333.2,3.00008]
[1738354277209,2.99959,3333.8,3333.5,0.05698823]
[1738354277416,2.99959,3333.8,3333.2,3.00008]
[1738354277596,0.0075,3333.7,3333.6,0.0569224]
[1738354277769,0.0075,3333.7,3333.2,3.682955]
[1738354277969,3.00717,3333.7,3333.3,0.05711991]
[1738354278233,3.00717,3333.7,3333.1,3.8284]
[1738354278520,0.0075,3333.7,3333.1,3.8284]
[1738354278691,0.0075,3333.7,3333.2,3.44006576]
[1738354278912,0.0075,3333.8,3333.2,3.44006576]
[1738354279119,3.00709,3333.8,3333.2,3.44006576]
[1738354279328,0.0075,3333.8,3333.2,0.05718576]
[1738354279640,0.55,3334.0,3332.4,3.81222]
[1738354279641,3.00753,3333.3,3332.4,3.81222]
[1738354279937,3.21812,3333.2,3332.6,3.00059]
[1738354280150,3.21812,3333.2,3332.7,0.05580273]
[1738354281229,3.00048,3332.8,3332.7,0.05580273]
[1738354281546,3.00125,3332.0,3331.4,0.7639]
[1738354281851,0.0075,3332.6,3331.5,0.05659342]
[1738354281996,0.0075,3332.5,3331.7,3.00145]
[1738354282199,0.7735,3332.7,3331.9,3.00121]
[1738354282520,0.7735,3332.7,3332.0,0.05676454]
[1738354282521,3.00083,3332.5,3332.0,0.05676454]
[1738354282697,0.0075,3332.6,3331.8,0.300145]
[1738354282900,3.00076,3332.5,3331.9,0.05691936]
[1738354283415,3.00076,3332.5,3331.9,3.05817936]
[1738354283734,3.00076,3332.5,3332.0,0.63596844]
[1738354283939,0.0075,3332.6,3332.1,0.05682018]
[1738354284149,3.76707,3333.1,3332.2,3.00102]
[1738354284453,3.76707,3333.1,3332.3,0.05668841]
[1738354284454,0.218,3332.8,3332.3,0.05668841]
[1738354284654,0.218,3332.8,3332.4,0.30576784]
[1738354285010,0.218,3332.8,3332.6,3.00065]
[1738354285353,0.218,3332.8,3332.7,3.0570038]
[1738354286117,0.7523,3333.5,3332.9,3.00033]
[1738354286346,0.218,3333.4,3333.0,0.05623622]
[1738354286555,0.218,3333.4,3332.8,3.00039]
[1738354286757,0.218,3333.4,3332.9,0.05621314]
[1738354286958,0.218,3333.4,3332.9,3.05652314]
[1738354287380,0.218,3333.4,3332.9,0.05621314]
[1738354287563,3.21794,3333.4,3332.7,3.80643]
[1738354287746,3.21794,3333.4,3332.8,0.736986]
[1738354288679,0.015,3333.3,3332.8,0.056279]
[1738354288876,0.0075,3333.0,3332.8,0.056279]
[1738354289178,0.0075,3333.0,3332.9,0.05621314]
[1738354289377,0.0075,3333.0,3332.2,3.00101]
[1738354289378,3.0078,3333.0,3332.2,3.00101]
[1738354289582,0.0075,3332.7,3332.0,3.00119]
[1738354289875,0.0075,3332.7,3332.2,3.001]
[1738354290029,3.00067,3332.6,3332.0,3.00119]
[1738354290440,3.01564,3332.7,3332.0,3.00119]
[1738354290639,3.01564,3332.7,3332.1,3.0011]
[1738354290873,3.00068,3332.6,3331.8,3.00135]
[1738354291073,3.00102,3332.2,3331.7,0.33198332]
[1738354291490,3.22662,3332.1,3331.7,0.33198332]
[1738354291690,3.00131,3331.9,3331.7,0.33198332]
[1738354291987,3.00138,3331.8,3331.7,0.33198332]
[1738354292197,3.00888,3331.8,3331.7,0.33198332]
[1738354292357,8.21062105,3331.8,3331.7,0.33198332]
[1738354292688,3.00241,3330.7,3329.9,3.00305]
[1738354292857,3.22053,3330.6,3329.8,3.80368]
[1738354293241,0.218,3330.6,3330.1,3.00287]
[1738354293491,0.218,3330.6,3330.0,3.00294]
[1738354293787,3.22047,3330.6,3330.0,3.00295]
[1738354293974,0.218,3330.6,3330.1,3.00289]